bitfinex-derivatives/quotes_SOLF0:USTF0_20260207
["timestamp","ask_amount","ask_price","bid_price","bid_amount"]
[1770505603938,10.2795,87.613,87.542,5.89550655]
[1770505604239,10.2795,87.613,87.551,5.31933638]
[1770505604431,10.2808,87.601,87.551,5.31933638]
[1770505605132,2.95553538,87.599,87.551,3.638e-05]
[1770505605335,2.95553538,87.599,87.542,6.551e-05]
[1770505606125,10.2836,87.578,87.542,6.551e-05]
[1770505607237,10.2852,87.564,87.505,1.98703857]
[1770505607435,10.2852,87.564,87.5,9.47433546]
[1770505609245,10.2852,87.564,87.501,3.69155293]
[1770505609441,3.65951887,87.576,87.501,3.69155293]
[1770505611037,10.2821,87.59,87.503,3.69155293]
[1770505611243,10.2821,87.59,87.521,3.69155293]
[1770505611442,3.65951887,87.589,87.521,3.69155293]
[1770505611839,3.65951887,87.629,87.521,3.69155293]
[1770505612039,3.65951887,87.627,87.521,3.69155293]
[1770505612239,3.65951887,87.625,87.521,3.69155293]
[1770505612447,3.65951887,87.623,87.521,3.69155293]
[1770505612634,3.65951887,87.618,87.541,3.69155293]
[1770505613036,8.31704624,87.617,87.541,3.69155293]
[1770505613240,3.65951887,87.616,87.541,3.69155293]
[1770505613444,3.65951887,87.614,87.541,3.69155293]
[1770505613645,3.65951887,87.612,87.541,3.69155293]
[1770505616141,3.65951887,87.612,87.543,3.69155293]
[1770505616745,3.65951887,87.61,87.531,3.69155293]
[1770505616948,3.65951887,87.608,87.531,3.69155293]
[1770505617252,3.65951887,87.606,87.531,3.69155293]
[1770505617549,3.65951887,87.595,87.531,3.69155293]
[1770505617749,10.2815,87.596,87.531,3.69155293]
[1770505617750,3.65951887,87.593,87.531,3.69155293]
[1770505618151,3.65951887,87.591,87.531,3.69155293]
[1770505619848,13.5979633,87.631,87.512,3.69155293]
[1770505619849,3.65951887,87.586,87.512,3.69155293]
[1770505620053,3.65951887,87.584,87.512,3.69155293]
[1770505620252,9.47433546,87.59,87.512,3.69155293]
[1770505620253,3.65951887,87.582,87.512,3.69155293]
[1770505620453,3.65951887,87.58,87.512,3.69155293]
[1770505621152,3.65951887,87.578,87.514,3.69155293]
[1770505621352,3.65951887,87.569,87.499,3.69155293]
[1770505621551,3.65951887,87.567,87.499,3.69155293]
[1770505621851,3.65951887,87.549,87.441,3.69155293]
[1770505622048,3.65951887,87.549,87.398,160.2949]
[1770505622049,3.65951887,87.547,87.461,3.69155293]
[1770505622353,3.65951887,87.547,87.466,3.69155293]
[1770505622555,3.65951887,87.547,87.475,3.69155293]
[1770505622953,3.65951887,87.547,87.455,1.98832147]
[1770505622954,3.65951887,87.515,87.456,3.69155293]
[1770505624146,3.65951887,87.515,87.435,1.98857143]
[1770505624346,3.65951887,87.515,87.333,28.37354642]
[1770505624347,3.65951887,87.499,87.427,3.69155293]
[1770505624853,3.65951887,87.529,87.429,3.69155293]
[1770505625256,3.65951887,87.529,87.441,3.69155293]
[1770505625450,3.65951887,87.529,87.425,1.98922503]
[1770505625451,3.65951887,87.529,87.461,3.69155293]
[1770505625856,3.71423248,87.527,87.461,3.69155293]
[1770505626452,3.71423248,87.525,87.431,3.9204775]
[1770505626657,3.71423248,87.502,87.431,3.9204775]
[1770505627154,3.71423248,87.472,87.414,3.9204775]
[1770505628154,3.71423248,87.472,87.386,3.9204775]
[1770505628358,3.71423248,87.458,87.386,3.9204775]
[1770505628953,3.71423248,87.458,87.241,160.5839]
[1770505628954,3.71423248,87.434,87.349,3.9204775]
[1770505629160,3.71423248,87.434,87.324,4.59698335]
[1770505629353,3.71423248,87.399,87.324,4.59698335]
[1770505630056,3.71423248,87.439,87.36,9.47433546]
[1770505630354,3.71423248,87.439,87.361,3.9204775]
[1770505631251,3.71423248,87.435,87.361,3.9204775]
[1770505632455,3.68777043,87.477,87.391,3.8118442]
[1770505633459,3.68777043,87.495,87.411,3.8118442]
[1770505635267,10.292,87.506,87.431,3.8118442]
[1770505636459,3.68777043,87.502,87.431,3.8118442]
[1770505637463,10.2928,87.499,87.431,3.8118442]
[1770505639469,3.68777043,87.496,87.431,3.8118442]
[1770505640364,3.68777043,87.496,87.305,160.4656]
[1770505640365,3.68777043,87.496,87.4,9.47433546]
[1770505640665,3.68777043,87.496,87.41,3.8118442]
[1770505641058,3.68777043,87.494,87.41,3.8118442]
[1770505641466,3.68777043,87.494,87.411,3.8118442]
[1770505643069,3.68777043,87.492,87.411,3.8118442]
[1770505643663,3.68777043,87.49,87.411,3.8118442]
[1770505644867,3.68777043,87.488,87.411,3.8118442]
[1770505645772,3.68777043,87.486,87.411,3.8118442]
[1770505646866,3.68777043,87.479,87.392,3.8118442]
[1770505647573,3.68777043,87.45,87.392,3.8118442]
[1770505648169,3.68777043,87.444,87.392,3.8118442]
[1770505649666,3.68777043,87.442,87.371,3.8118442]
[1770505650278,3.68777043,87.46,87.381,3.8118442]
[1770505651079,3.68777043,87.446,87.381,3.8118442]
[1770505651771,3.68777043,87.425,87.351,3.8118442]
[1770505653174,13.99107043,87.41,87.351,3.8118442]
[1770505653379,3.68777043,87.409,87.329,3.8118442]
[1770505653981,10.312,87.336,87.282,34.35]
[1770505654275,10.312,87.336,87.2,160.6584]
[1770505654276,9.47433546,87.4,87.29,9.47433546]
[1770505654476,10.3038,87.406,87.311,3.8118442]
[1770505654669,3.68777043,87.409,87.331,3.8118442]
[1770505654874,3.68777043,87.409,87.351,3.8118442]
[1770505655188,3.567326,87.437,87.361,3.8118442]
[1770505655375,3.567326,87.461,87.381,3.8118442]
[1770505656380,9.47433546,87.5,87.341,3.73179658]
[1770505656381,3.56311564,87.453,87.341,3.73179658]
[1770505656570,3.56311564,87.453,87.361,3.73179658]
[1770505656776,3.56311564,87.437,87.361,3.73179658]
[1770505657772,3.79380157,87.433,87.361,3.73179658]
[1770505658481,3.79380157,87.431,87.361,3.73179658]
[1770505659078,3.79380157,87.431,87.32,9.47433546]
[1770505659278,3.86513168,87.412,87.321,3.73179658]
[1770505660179,3.86513168,87.394,87.321,3.73179658]
[1770505660777,3.86513168,87.391,87.321,3.73179658]
[1770505663681,3.77775906,87.437,87.34,9.52881926]
[1770505663980,3.77775906,87.437,87.341,3.73179658]
[1770505664373,3.77775906,87.421,87.341,3.73179658]
[1770505664779,3.77775906,87.421,87.343,3.73179658]
[1770505664978,10.27467342,87.49,87.343,3.73179658]
[1770505664979,3.79475282,87.417,87.343,3.73179658]
[1770505667990,3.79475282,87.417,87.347,3.73179658]
[1770505668782,3.79475282,87.417,87.35,3.73179658]
[1770505669588,3.79475282,87.417,87.352,3.73179658]
[1770505670485,3.86513168,87.434,87.359,3.73179658]
[1770505671290,3.86513168,87.449,87.374,3.73179658]
[1770505671890,3.86513168,87.449,87.378,3.73179658]
[1770505672286,8.36929023,87.448,87.378,3.73179658]
[1770505672487,9.52881926,87.45,87.34,9.52881926]
[1770505672488,3.86513168,87.446,87.359,3.73179658]
[1770505672789,3.86513168,87.444,87.359,3.73179658]
[1770505672989,3.86513168,87.442,87.359,3.73179658]
[1770505673285,3.86513168,87.432,87.361,3.73179658]
[1770505675795,3.86513168,87.431,87.364,3.73179658]
[1770505676280,3.86513168,87.429,87.364,3.73179658]
[1770505676795,3.86513168,87.409,87.321,3.73179658]
[1770505676994,3.86513168,87.407,87.321,3.73179658]
[1770505677688,3.86513168,87.407,87.341,14.04309658]
[1770505677890,3.86513168,87.407,87.342,3.73179658]
[1770505678486,3.86513168,87.407,87.356,10.3095]
[1770505679296,3.86513168,87.407,87.343,3.73179658]
[1770505679791,3.86513168,87.405,87.347,10.3107]
[1770505679995,3.86513168,87.405,87.343,3.73179658]
[1770505681688,3.86513168,87.429,87.343,3.73179658]
[1770505681893,9.52881926,87.43,87.343,3.73179658]
[1770505681894,3.86513168,87.427,87.343,3.73179658]
[1770505682093,3.86513168,87.425,87.343,3.73179658]
[1770505682693,3.86513168,87.425,87.368,10.3081]
[1770505683295,3.86513168,87.423,87.368,10.3081]
[1770505684201,12.26766647,87.422,87.368,10.3081]
[1770505684396,3.86513168,87.453,87.391,3.73179658]
[1770505684595,3.86513168,87.451,87.391,3.73179658]
[1770505685302,3.86513168,87.451,87.393,3.73179658]
[1770505685692,3.705907,87.449,87.393,3.73179658]
[1770505685896,3.705907,87.449,87.394,10.3051]
[1770505686092,3.705907,87.449,87.393,3.73179658]
[1770505686600,3.705907,87.449,87.393,14.03699658]
[1770505686802,3.705907,87.449,87.394,3.93623898]
[1770505687900,3.705907,87.449,87.395,14.24113898]
[1770505688802,20.53948868,87.521,87.345,20.6217]
[1770505688803,3.705907,87.473,87.404,3.93623898]
[1770505689005,3.705907,87.471,87.404,3.93623898]
[1770505689307,3.705907,87.469,87.404,3.93623898]
[1770505689507,3.705907,87.49,87.411,3.93623898]
[1770505689694,3.705907,87.488,87.411,3.93623898]
[1770505690004,3.705907,87.486,87.411,3.93623898]
[1770505690201,3.705907,87.484,87.43,10.3008]
[1770505690402,3.705907,87.482,87.429,3.93623898]
[1770505690607,8.42439144,87.481,87.429,3.93623898]
[1770505690814,3.705907,87.482,87.43,10.3008]
[1770505691103,3.705907,87.482,87.429,3.93623898]
[1770505691306,3.705907,87.514,87.429,3.93623898]
[1770505691503,437.20192539,87.515,87.429,3.93623898]
[1770505691504,3.705907,87.512,87.429,3.93623898]
[1770505691704,3.705907,87.51,87.429,3.93623898]
[1770505691897,3.705907,87.508,87.429,3.93623898]
[1770505692103,3.70128377,87.506,87.429,3.93623898]
[1770505692299,3.70128377,87.504,87.429,3.93623898]
[1770505692503,12.12080039,87.503,87.429,3.93623898]
[1770505692706,3.70128377,87.503,87.442,13.85708862]
[1770505693105,3.70128377,87.503,87.443,3.55758862]
[1770505693306,3.70128377,87.529,87.462,10.2971]
[1770505693506,3.70128377,87.527,87.462,10.2971]
[1770505693710,3.70128377,87.525,87.462,10.2971]
[1770505693907,3.70128377,87.523,87.463,3.55758862]
[1770505694209,3.70128377,87.523,87.468,3.55758862]
[1770505694906,3.70128377,87.523,87.469,10.2962]
[1770505695203,3.70128377,87.523,87.468,3.55758862]
[1770505695603,3.70128377,87.521,87.468,3.55758862]
[1770505695803,3.70128377,87.519,87.445,3.55758862]
[1770505695999,3.70128377,87.517,87.445,3.55758862]
[1770505696708,3.70128377,87.547,87.461,3.55758862]
[1770505696912,3.70128377,87.545,87.461,3.55758862]
[1770505697206,3.70128377,87.543,87.481,3.55758862]
[1770505697411,3.70128377,87.543,87.46,9.52881926]
[1770505697412,3.70128377,87.543,87.465,3.55758862]
[1770505697612,3.70128377,87.541,87.465,3.55758862]
[1770505697909,3.70128377,87.539,87.465,3.55758862]
[1770505698105,3.70128377,87.537,87.465,3.55758862]
[1770505698305,3.70128377,87.535,87.441,3.55758862]
[1770505698500,3.70128377,87.533,87.441,3.55758862]
[1770505699307,20.53948868,87.596,87.386,34.35]
[1770505699308,3.70128377,87.526,87.426,3.55758862]
[1770505699510,3.70128377,87.524,87.426,3.55758862]
[1770505699711,3.70128377,87.522,87.426,3.55758862]
[1770505699907,9.52881926,87.53,87.439,3.55758862]
[1770505699908,3.70128377,87.517,87.439,3.55758862]
[1770505700107,3.70128377,87.515,87.439,3.55758862]
[1770505700709,3.70128377,87.509,87.439,3.55758862]
[1770505700915,9.52881926,87.51,87.439,3.55758862]
[1770505700916,3.70128377,87.507,87.439,3.55758862]
[1770505701109,3.70128377,87.505,87.439,3.55758862]
[1770505701816,3.70128377,87.505,87.441,3.55758862]
[1770505702714,3.70128377,87.529,87.443,3.55758862]
[1770505702919,3.70128377,87.529,87.461,3.55758862]
[1770505703819,3.70128377,87.527,87.461,3.55758862]
[1770505704115,3.70128377,87.525,87.461,3.55758862]
[1770505704915,3.70128377,87.525,87.444,3.55758862]
[1770505705114,3.70128377,87.523,87.444,3.55758862]
[1770505706112,3.70128377,87.523,87.44,9.52881926]
[1770505706113,3.70128377,87.523,87.453,3.55758862]
[1770505706920,3.70128377,87.519,87.453,3.55758862]
[1770505707113,3.70128377,87.517,87.453,3.55758862]
[1770505707319,3.70128377,87.515,87.453,3.55758862]
[1770505707517,3.70128377,87.513,87.453,3.55758862]
[1770505709318,3.70128377,87.511,87.453,3.55758862]
[1770505712832,3.70128377,87.511,87.442,10.2995]
[1770505712833,3.70128377,87.496,87.432,3.55758862]
[1770505713125,3.70128377,87.494,87.432,3.55758862]
[1770505713425,3.70128377,87.492,87.432,3.55758862]
[1770505713630,3.70128377,87.489,87.432,3.55758862]
[1770505714329,3.70128377,87.487,87.432,3.55758862]
[1770505714715,3.70128377,87.506,87.432,3.55758862]
[1770505714921,3.70128377,87.506,87.443,3.55758862]
[1770505716227,3.70128377,87.506,87.402,34.35]
[1770505716228,3.90955691,87.524,87.445,3.68260065]
[1770505717927,3.90955691,87.524,87.461,3.68260065]
[1770505719531,3.90955691,87.522,87.461,3.68260065]
[1770505719830,3.90955691,87.52,87.461,3.68260065]
[1770505720025,3.90955691,87.506,87.461,3.68260065]
[1770505720226,3.90955691,87.506,87.445,3.68260065]
[1770505721522,3.90955691,87.499,87.43,3.68260065]
[1770505721830,3.90955691,87.497,87.43,3.68260065]
[1770505722029,3.90955691,87.495,87.43,3.68260065]
[1770505722229,3.90955691,87.494,87.43,3.68260065]
[1770505722433,3.90955691,87.493,87.43,3.68260065]
[1770505723337,10.2939,87.49,87.43,3.68260065]
[1770505723736,3.90955691,87.493,87.43,3.68260065]
[1770505724031,3.90955691,87.491,87.43,3.68260065]
[1770505724235,8.37626247,87.49,87.43,3.68260065]
[1770505724434,8.37626247,87.489,87.43,3.68260065]
[1770505724634,3.90955691,87.491,87.43,3.68260065]
[1770505725336,3.90955691,87.489,87.43,3.68260065]
[1770505726235,18.67158025,87.488,87.43,3.68260065]
[1770505726529,8.37748025,87.487,87.43,3.68260065]
[1770505726833,3.90955691,87.489,87.43,3.68260065]
[1770505727433,8.39183463,87.488,87.43,3.68260065]
[1770505727734,8.39183463,87.487,87.43,3.68260065]
[1770505727936,3.90955691,87.489,87.43,3.68260065]
[1770505728336,8.39761399,87.488,87.43,3.68260065]
[1770505728539,8.39761399,87.487,87.43,3.68260065]
[1770505728737,3.90955691,87.489,87.435,3.68260065]
[1770505728938,8.39757783,87.488,87.435,3.68260065]
[1770505729133,8.39757783,87.487,87.435,3.68260065]
[1770505729335,8.40632658,87.486,87.435,3.68260065]
[1770505729535,8.40632658,87.485,87.435,3.68260065]
[1770505729732,10.2924,87.502,87.436,10.3001]
[1770505729941,3.90955691,87.532,87.451,3.68260065]
[1770505730141,3.90955691,87.53,87.451,3.68260065]
[1770505730342,3.90955691,87.528,87.451,3.68260065]
[1770505730547,12.31959848,87.527,87.463,3.68260065]
[1770505730843,8.41004157,87.526,87.463,3.68260065]
[1770505731038,8.41004157,87.525,87.463,3.68260065]
[1770505731344,8.41004157,87.524,87.47,9.50080317]
[1770505731539,8.41004157,87.523,87.471,3.68260065]
[1770505731843,8.41004157,87.522,87.471,3.68260065]
[1770505732037,8.41004157,87.521,87.471,3.68260065]
[1770505732238,8.41004157,87.52,87.471,3.68260065]
[1770505732440,8.41004157,87.519,87.471,3.68260065]
[1770505732637,8.41004157,87.518,87.471,3.68260065]
[1770505732837,8.41004157,87.517,87.471,3.68260065]
[1770505733044,8.41004157,87.516,87.471,3.68260065]
[1770505733244,3.90955691,87.527,87.474,3.68260065]
[1770505733443,3.90955691,87.558,87.474,3.68260065]
[1770505733648,3.90955691,87.556,87.474,3.68260065]
[1770505733945,3.90955691,87.554,87.491,3.68260065]
[1770505734244,3.90955691,87.552,87.491,3.68260065]
[1770505734546,12.33338784,87.551,87.491,3.68260065]
[1770505734745,8.42383093,87.55,87.491,3.68260065]
[1770505734947,8.42383093,87.549,87.491,3.68260065]
[1770505735149,8.42383093,87.548,87.491,3.68260065]
[1770505735346,8.42383093,87.547,87.491,3.68260065]
[1770505735542,8.42383093,87.546,87.491,3.68260065]
[1770505735846,8.42383093,87.545,87.491,3.68260065]
[1770505736044,8.42383093,87.544,87.491,3.68260065]
[1770505736244,8.42383093,87.543,87.491,3.68260065]
[1770505736448,3.90955691,87.551,87.495,3.68260065]
[1770505736649,8.41580909,87.55,87.495,3.68260065]
[1770505736947,8.41580909,87.549,87.495,3.68260065]
[1770505737149,8.41580909,87.548,87.495,3.68260065]
[1770505737450,3.90955691,87.551,87.49,9.50080317]
[1770505737451,8.41580909,87.547,87.497,3.68260065]
[1770505737649,3.90955691,87.551,87.497,3.68260065]
[1770505738954,3.90955691,87.551,87.503,13.97480065]
[1770505739355,3.90955691,87.551,87.504,3.68260065]
[1770505739557,3.90955691,87.582,87.511,3.68260065]
[1770505739854,3.90955691,87.58,87.511,3.68260065]
[1770505740153,3.90955691,87.578,87.514,3.68260065]
[1770505740353,3.90955691,87.576,87.514,3.68260065]
[1770505740545,8.39343158,87.577,87.514,3.68260065]
[1770505740546,3.90955691,87.574,87.514,3.68260065]
[1770505740745,3.90955691,87.572,87.514,3.68260065]
[1770505741148,10.2812,87.598,87.514,3.68260065]
[1770505741149,12.30348652,87.571,87.514,3.68260065]
[1770505741350,3.90955691,87.571,87.514,3.68260065]
[1770505741557,3.90955691,87.569,87.5,3.68260065]
[1770505741859,3.90955691,87.567,87.5,3.68260065]
[1770505742049,3.90955691,87.565,87.5,3.68260065]
[1770505742250,3.90955691,87.563,87.486,3.68260065]
[1770505742546,3.90955691,87.561,87.486,3.68260065]
[1770505742755,3.90955691,87.559,87.486,3.68260065]
[1770505742948,3.90955691,87.552,87.486,3.68260065]
[1770505743145,3.90955691,87.55,87.486,3.68260065]
[1770505743444,3.90955691,87.548,87.486,3.68260065]
[1770505743644,3.90955691,87.546,87.486,3.68260065]
[1770505743949,3.90955691,87.544,87.486,3.68260065]
[1770505744154,3.90955691,87.542,87.486,3.68260065]
[1770505744348,3.90955691,87.54,87.486,3.68260065]
[1770505744552,3.90955691,87.538,87.486,3.68260065]
[1770505744750,3.90955691,87.536,87.486,3.68260065]
[1770505744952,3.90955691,87.534,87.486,3.68260065]
[1770505745151,12.29783332,87.533,87.486,3.68260065]
[1770505745352,10.2876,87.543,87.471,3.68260065]
[1770505745353,3.90955691,87.531,87.471,3.68260065]
[1770505745657,3.69701642,87.529,87.471,3.68260065]
[1770505745857,3.69701642,87.527,87.471,3.68260065]
[1770505746058,3.69701642,87.525,87.471,3.68260065]
[1770505746353,8.38827641,87.524,87.471,3.68260065]
[1770505746558,3.69701642,87.525,87.471,3.68260065]
[1770505746859,12.08081661,87.524,87.471,3.68260065]
[1770505747046,3.69701642,87.524,87.471,3.68260065]
[1770505747245,10.289,87.532,87.471,3.68260065]
[1770505747246,3.69701642,87.522,87.471,3.68260065]
[1770505747457,3.69701642,87.52,87.431,3.77682081]
[1770505747652,3.69701642,87.514,87.446,3.77682081]
[1770505747857,3.69701642,87.512,87.446,3.77682081]
[1770505748156,48.03401617,87.548,87.428,3.77682081]
[1770505748157,3.69701642,87.509,87.428,3.77682081]
[1770505748356,3.69701642,87.507,87.428,3.77682081]
[1770505748558,3.69701642,87.5,87.428,3.77682081]
[1770505748752,3.69701642,87.498,87.428,3.77682081]
[1770505748953,3.69701642,87.496,87.428,3.77682081]
[1770505749157,3.69701642,87.494,87.428,3.77682081]
[1770505749358,10.2926,87.501,87.428,3.77682081]
[1770505749359,3.69701642,87.492,87.428,3.77682081]
[1770505749557,3.69701642,87.49,87.428,3.77682081]
[1770505749752,3.69701642,87.488,87.428,3.77682081]
[1770505749952,3.69701642,87.486,87.428,3.77682081]
[1770505750357,3.69701642,87.484,87.428,3.77682081]
[1770505750558,3.69701642,87.482,87.428,3.77682081]
[1770505750756,8.37779225,87.481,87.428,3.77682081]
[1770505751057,3.69701642,87.498,87.431,3.77682081]
[1770505751448,3.69701642,87.496,87.431,3.77682081]
[1770505752058,3.69701642,87.496,87.434,3.82692672]
[1770505753062,3.72392935,87.494,87.434,3.82692672]
[1770505753453,3.72392935,87.492,87.434,3.82692672]
[1770505753755,3.72392935,87.49,87.434,3.82692672]
[1770505753949,3.72392935,87.488,87.434,3.82692672]
[1770505754152,3.72392935,87.486,87.434,3.82692672]
[1770505756160,3.72392935,87.482,87.418,3.82692672]
[1770505756358,3.72392935,87.48,87.418,3.82692672]
[1770505756663,3.72392935,87.478,87.418,3.82692672]
[1770505756858,3.72392935,87.476,87.418,3.82692672]
[1770505757055,3.72392935,87.466,87.418,3.82692672]
[1770505757763,3.72392935,87.459,87.389,3.82692672]
[1770505757959,3.72392935,87.457,87.389,3.82692672]
[1770505758159,3.72392935,87.455,87.389,3.82692672]
[1770505759770,3.72392935,87.453,87.389,3.82692672]
[1770505760863,3.72392935,87.45,87.389,3.82692672]
[1770505761058,3.72392935,87.448,87.367,3.82692672]
[1770505761258,3.72392935,87.446,87.367,3.82692672]
[1770505761458,3.72392935,87.444,87.367,3.82692672]
[1770505761667,3.72392935,87.43,87.367,3.82692672]
[1770505762565,3.72392935,87.428,87.367,3.82692672]
[1770505764167,3.72392935,87.426,87.367,3.82692672]
[1770505764970,3.72392935,87.424,87.367,3.82692672]
[1770505765772,9.50080317,87.45,87.367,3.82692672]
[1770505765773,8.33454143,87.443,87.367,3.82692672]
[1770505765960,3.72392935,87.453,87.367,3.82692672]
[1770505766659,3.72392935,87.453,87.381,3.82692672]
[1770505767662,3.72392935,87.453,87.391,3.82692672]
[1770505768768,3.72392935,87.453,87.392,3.82692672]
[1770505769673,3.72392935,87.453,87.394,3.82692672]
[1770505769867,3.72392935,87.483,87.411,3.82692672]
[1770505770470,10.2956,87.476,87.411,3.82692672]
[1770505771069,14.01952935,87.476,87.411,3.82692672]
[1770505771470,3.72392935,87.473,87.411,3.82692672]
[1770505772078,14.02192935,87.455,87.411,3.82692672]
[1770505773578,3.72392935,87.455,87.411,3.82692672]
[1770505774674,3.72392935,87.455,87.391,3.82692672]
[1770505782684,3.79105293,87.453,87.391,3.82692672]
[1770505783779,3.79105293,87.45,87.391,3.82692672]
[1770505786383,9.51518439,87.48,87.391,3.82692672]
[1770505786384,3.79105293,87.445,87.391,3.82692672]
[1770505791287,10.2991,87.446,87.391,3.82692672]
[1770505791288,3.79105293,87.443,87.391,3.82692672]
[1770505791482,8.3879043,87.442,87.391,3.82692672]
[1770505791784,3.79105293,87.443,87.391,3.82692672]
[1770505792585,3.79105293,87.455,87.401,3.90816822]
[1770505792785,12.18639935,87.454,87.401,3.90816822]
[1770505793091,12.18639935,87.453,87.401,3.90816822]
[1770505793387,3.79105293,87.451,87.401,3.90816822]
[1770505793593,12.18713826,87.45,87.401,3.90816822]
[1770505793787,8.39608533,87.449,87.401,3.90816822]
[1770505793988,8.39608533,87.448,87.401,3.90816822]
[1770505794286,3.79105293,87.446,87.401,3.90816822]
[1770505794494,3.79105293,87.444,87.401,3.90816822]
[1770505794693,3.79105293,87.442,87.401,3.90816822]
[1770505794887,3.79105293,87.44,87.401,3.90816822]
[1770505795082,8.39663324,87.439,87.401,3.90816822]
[1770505795288,3.80673756,87.45,87.401,3.90816822]
[1770505795289,12.18768617,87.438,87.401,3.90816822]
[1770505795488,8.39663324,87.437,87.401,3.90816822]
[1770505795692,8.39663324,87.436,87.401,3.90816822]
[1770505795894,8.39663324,87.435,87.401,3.90816822]
[1770505796192,8.39663324,87.434,87.401,3.90816822]
[1770505796387,8.39663324,87.433,87.401,3.90816822]
[1770505796693,3.79105293,87.431,87.363,3.90816822]
[1770505796888,3.79105293,87.429,87.363,3.90816822]
[1770505797080,3.79105293,87.427,87.363,3.90816822]
[1770505797286,3.79105293,87.425,87.363,3.90816822]
[1770505797484,3.79105293,87.423,87.363,3.90816822]
[1770505797685,3.79105293,87.419,87.363,3.90816822]
[1770505797883,3.79105293,87.417,87.363,3.90816822]
[1770505798084,3.79105293,87.415,87.363,3.90816822]
[1770505798285,3.79105293,87.413,87.341,3.90816822]
[1770505798483,3.79105293,87.411,87.341,3.90816822]
[1770505798680,3.79105293,87.396,87.323,3.90816822]
[1770505798885,3.79105293,87.391,87.323,3.90816822]
[1770505799092,3.79105293,87.389,87.323,3.90816822]
[1770505799285,3.79105293,87.387,87.323,3.90816822]
[1770505799588,3.79105293,87.385,87.323,3.90816822]
[1770505799790,3.79105293,87.383,87.323,3.90816822]
[1770505799988,10.3048,87.397,87.323,3.90816822]
[1770505799989,3.79105293,87.381,87.323,3.90816822]
[1770505800190,3.79105293,87.379,87.323,3.90816822]
[1770505800491,10.3048,87.397,87.323,3.90816822]
[1770505800492,3.79105293,87.377,87.323,3.90816822]
[1770505800792,3.79105293,87.375,87.323,3.90816822]
[1770505800991,3.79105293,87.373,87.323,3.90816822]
[1770505801301,3.79105293,87.368,87.294,3.90816822]
[1770505801586,3.79105293,87.366,87.294,3.90816822]
[1770505801992,3.79105293,87.381,87.294,3.90816822]
[1770505802194,3.79105293,87.379,87.294,3.90816822]
[1770505802395,3.79105293,87.377,87.319,3.90816822]
[1770505802595,3.79105293,87.375,87.319,3.90816822]
[1770505802894,13.87070759,87.428,87.319,3.90816822]
[1770505802895,3.79105293,87.373,87.319,3.90816822]
[1770505803089,8.37149948,87.372,87.319,3.90816822]
[1770505803391,9.51882277,87.39,87.319,3.90816822]
[1770505803392,3.79105293,87.37,87.319,3.90816822]
[1770505803689,3.79105293,87.384,87.319,3.90816822]
[1770505803890,3.79105293,87.398,87.331,3.90816822]
[1770505804291,3.79105293,87.398,87.345,3.90816822]
[1770505804892,3.79105293,87.421,87.345,3.90816822]
[1770505805088,3.79105293,87.419,87.345,3.90816822]
[1770505805597,3.78001598,87.435,87.351,3.67361405]
[1770505806491,3.78001598,87.433,87.351,3.67361405]
[1770505806891,3.78001598,87.433,87.371,3.67361405]
[1770505807093,3.78001598,87.433,87.353,3.67361405]
[1770505807289,3.78001598,87.433,87.213,160.6346]
[1770505807290,3.78001598,87.409,87.338,3.67361405]
[1770505807593,9.51882277,87.41,87.3,9.51882277]
[1770505807594,3.78001598,87.404,87.322,3.67361405]
[1770505807793,3.78001598,87.402,87.322,3.67361405]
[1770505807998,3.78001598,87.4,87.322,3.67361405]
[1770505808200,3.78001598,87.398,87.322,3.67361405]
[1770505808392,3.78001598,87.396,87.322,3.67361405]
[1770505808587,3.78001598,87.394,87.322,3.67361405]
[1770505808792,3.78001598,87.392,87.322,3.67361405]
[1770505809092,3.78001598,87.39,87.322,3.67361405]
[1770505809290,3.78001598,87.388,87.322,3.67361405]
[1770505811002,3.78001598,87.386,87.322,3.67361405]
[1770505811192,3.78001598,87.384,87.322,3.67361405]
[1770505812605,3.87489631,87.399,87.326,3.8684813]
[1770505817001,3.87489631,87.396,87.326,3.8684813]
[1770505818503,3.87489631,87.393,87.326,3.8684813]
[1770505820298,3.87489631,87.393,87.328,3.8684813]
[1770505820513,3.87489631,87.407,87.331,3.8684813]
[1770505820702,3.87489631,87.405,87.331,3.8684813]
[1770505821108,3.87489631,87.391,87.331,3.8684813]
[1770505821306,3.87489631,87.379,87.274,3.8684813]
[1770505821615,9.51882277,87.38,87.287,14.1861813]
[1770505821616,3.87489631,87.363,87.287,14.1861813]
[1770505821810,3.87489631,87.363,87.288,3.8684813]
[1770505822513,3.87489631,87.379,87.301,3.8684813]
[1770505823302,3.87489631,87.379,87.319,3.8684813]
[1770505824513,3.87489631,87.379,87.335,10.312]
[1770505825212,3.87489631,87.379,87.32,9.51882277]
[1770505825213,3.87489631,87.408,87.341,3.8684813]
[1770505825814,3.87489631,87.408,87.355,3.8684813]
[1770505826010,3.87489631,87.406,87.318,3.8684813]
[1770505826212,9.51882277,87.43,87.281,3.8684813]
[1770505826213,3.87489631,87.389,87.281,3.8684813]
[1770505826510,3.87489631,87.368,87.285,3.8684813]
[1770505826913,3.87489631,87.366,87.285,3.8684813]
[1770505827112,3.87489631,87.364,87.285,3.8684813]